bitfinex/quotes_SOLUSD_20250401
["timestamp","ask_amount","ask_price","bid_price","bid_amount"]
[1743545165887,0.03,126.32,126.31,0.28432314]
[1743545166096,0.063,126.33,126.32,99.584772]
[1743545166899,0.063,126.33,126.32,107.501172]
[1743545169313,0.063,126.34,126.33,18.64964886]
[1743545169503,0.0001,126.34,126.33,25.263772]
[1743545170299,0.0001,126.35,126.34,38.933972]
[1743545170501,0.0001,126.35,126.34,99.19967951]
[1743545170817,0.0001,126.36,126.35,18.933972]
[1743545171314,0.0001,126.36,126.35,26.848472]
[1743545173607,0.063,126.42,126.4,18.64964886]
[1743545173910,0.063,126.42,126.4,99.23734886]
[1743545175317,7.9731,126.42,126.4,80.5877]
[1743545175700,0.063,126.42,126.4,80.5877]
[1743545176009,0.063,126.42,126.41,18.64964886]
[1743545176713,15.73961598,126.42,126.4,80.5877]
[1743545176903,0.063,126.42,126.4,80.5877]
[1743545178121,0.063,126.42,126.41,18.64964886]
[1743545179597,0.063,126.42,126.41,99.23734886]
[1743545183002,15.73961598,126.42,126.41,80.5877]
[1743545188128,23.64971598,126.42,126.41,80.5877]
[1743545191624,15.73961598,126.42,126.41,80.5877]
[1743545193027,23.64971598,126.42,126.41,80.5877]
[1743545196024,15.73961598,126.42,126.41,80.5877]
[1743545196835,0.063,126.42,126.41,80.5877]
[1743545205134,0.063,126.42,126.41,107.14804886]
[1743545209337,0.063,126.43,126.42,99.458672]
[1743545209847,0.063,126.43,126.42,107.368772]
[1743545212339,0.063,126.43,126.42,99.458672]
[1743545214741,0.03,126.45,126.43,99.395672]
[1743545220350,0.03,126.45,126.43,107.304972]
[1743545220644,0.03,126.45,126.43,99.395672]
[1743545221447,0.03,126.45,126.43,107.304972]
[1743545224027,0.03,126.46,126.45,99.365672]
[1743545224427,0.03,126.46,126.45,107.273872]
[1743545229350,0.063,126.48,126.47,80.65602314]
[1743545229533,0.063,126.48,126.47,88.56302314]
[1743545229736,0.063,126.48,126.47,107.212672]
[1743545230130,0.063,126.48,126.47,99.305672]
[1743545231151,0.063,126.48,126.47,107.212672]
[1743545233050,0.063,126.48,126.47,99.02134886]
[1743545233748,0.063,126.48,126.47,106.92834886]
[1743545233945,0.063,126.48,126.47,107.212672]
[1743545238165,0.063,126.51,126.48,80.3087]
[1743545239866,0.063,126.51,126.5,18.64964886]
[1743545242968,0.063,126.51,126.49,80.3087]
[1743545242969,15.73961598,126.51,126.49,80.3087]
[1743545243168,15.67661598,126.5,126.49,80.3087]
[1743545243937,23.58171598,126.5,126.49,80.3087]
[1743545248045,23.58171598,126.5,126.46,98.95834886]
[1743545248370,23.58171598,126.5,126.46,80.3087]
[1743545248371,15.67661598,126.47,126.46,80.3087]
[1743545248540,15.67661598,126.47,126.44,80.3087]
[1743545248868,15.67661598,126.46,126.44,80.3087]
[1743545249339,23.58431598,126.46,126.44,80.3087]
[1743545249667,15.67661598,126.45,126.44,80.3087]
[1743545251666,23.58481598,126.45,126.44,80.3087]
[1743545251976,1.6618,126.44,126.43,0.063]
[1743545252150,17.33841598,126.44,126.43,0.063]
[1743545253581,25.24721598,126.44,126.43,0.063]
[1743545255670,38.32711598,126.44,126.43,0.063]
[1743545259795,101.31790304,126.44,126.43,0.063]
[1743545259962,15.67661598,126.39,126.36,80.3717]
[1743545260288,15.67661598,126.38,126.36,80.3717]
[1743545260957,15.67661598,126.37,126.36,80.3717]
[1743545261488,15.67661598,126.37,126.36,0.063]
[1743545261988,1.5752,126.42,126.36,0.063]
[1743545262292,15.67661598,126.4,126.36,80.3717]
[1743545263089,15.67661598,126.4,126.37,7.9132]
[1743545267467,15.67661598,126.4,126.37,88.2219]
[1743545272991,15.67661598,126.39,126.37,88.2219]
[1743545274193,14.8107,126.41,126.37,88.2219]
[1743545274396,15.67661598,126.4,126.37,80.3087]
[1743545274691,15.67661598,126.39,126.37,80.3717]
[1743545275063,15.67661598,126.39,126.37,88.2848]
[1743545276092,14.8107,126.41,126.37,88.2848]
[1743545276291,15.67661598,126.4,126.37,88.2848]
[1743545280297,15.67661598,126.39,126.37,88.2848]
[1743545282589,15.67661598,126.4,126.37,88.2848]
[1743545282898,15.67661598,126.39,126.37,88.2848]
[1743545284799,15.67661598,126.4,126.37,88.2848]
[1743545285182,15.70661598,126.43,126.38,18.64964886]
[1743545285497,15.70661598,126.43,126.38,98.95834886]
[1743545286371,0.03,126.43,126.39,0.28432314]
[1743545286801,0.03,126.43,126.4,18.64964886]
[1743545287299,0.03,126.43,126.42,18.64964886]
[1743545287494,0.03,126.43,126.42,98.95834886]
[1743545289397,0.03,126.43,126.42,106.86844886]
[1743545289793,0.03,126.43,126.42,107.152772]
[1743545291093,0.0001,126.43,126.42,107.152772]
[1743545298093,15.67661598,126.49,126.44,18.933972]
[1743545298293,15.67661598,126.49,126.44,99.242572]
[1743545298679,15.67661598,126.49,126.46,18.64964886]
[1743545301107,15.67661598,126.49,126.46,26.55694886]
[1743545308322,15.67661598,126.47,126.43,80.3086]
[1743545308504,15.67661598,126.44,126.43,80.3086]
[1743545311011,23.58541598,126.44,126.43,80.3086]
[1743545311516,15.67661598,126.44,126.43,80.3086]
[1743545317098,23.58541598,126.44,126.43,80.3086]
[1743545317602,15.67661598,126.44,126.43,80.3086]
[1743545320599,15.67661598,126.45,126.43,98.95824886]
[1743545320810,15.67661598,126.47,126.44,18.64964886]
[1743545321012,15.67661598,126.47,126.44,98.95824886]
[1743545322021,15.67661598,126.47,126.44,106.86694886]
[1743545325035,15.67661598,126.46,126.44,98.95824886]
[1743545326727,14.67661598,126.46,126.44,98.95824886]
[1743545330327,15.67661598,126.47,126.44,106.86704886]
[1743545332323,15.70661598,126.49,126.45,0.28432314]
[1743545333931,15.67661598,126.48,126.45,8.19252314]
[1743545334241,15.67661598,126.48,126.45,0.28432314]
[1743545336335,23.58301598,126.48,126.45,0.28432314]
[1743545337818,23.58301598,126.48,126.45,80.59292314]
[1743545339638,7.9064,126.48,126.45,80.3086]
[1743545339829,15.67661598,126.46,126.45,80.3086]
[1743545341345,23.58421598,126.46,126.45,80.3086]
[1743545345247,23.58421598,126.46,126.45,80.3716]
[1743545345550,23.61421598,126.46,126.45,80.3716]
[1743545348152,15.70661598,126.46,126.45,80.3716]
[1743545348642,0.03,126.46,126.45,80.3716]
[1743545350347,0.03,126.46,126.45,99.02124886]
[1743545352231,0.03,126.46,126.45,107.213772]
[1743545352535,0.03,126.46,126.45,99.02124886]
[1743545353150,0.03,126.46,126.45,106.92944886]
[1743545354060,0.03,126.46,126.45,107.213772]
[1743545360357,15.67661598,126.48,126.47,7.907]
[1743545360558,0.03,126.49,126.48,18.933972]
[1743545363263,0.03,126.49,126.48,26.840272]
[1743545364261,0.03,126.49,126.48,107.118872]
[1743545387759,0.03,126.49,126.48,98.92824886]
[1743545387962,15.70661598,126.49,126.46,80.3416]
[1743545388165,15.67661598,126.47,126.46,80.3416]
[1743545389486,23.58361598,126.47,126.46,80.3416]
[1743545393697,25.18011598,126.47,126.46,0.063]
[1743545393871,31.50701598,126.47,126.46,0.063]
[1743545398895,23.60001598,126.47,126.46,0.063]
[1743545399390,31.50701598,126.47,126.46,0.063]
[1743545399591,31.50701598,126.47,126.45,0.063]
[1743545399777,15.67661598,126.46,126.45,0.063]
[1743545399976,15.67661598,126.46,126.43,0.063]
[1743545400197,15.67661598,126.44,126.43,0.063]
[1743545405592,1.5965,126.47,126.43,80.3416]
[1743545405797,17.27311598,126.47,126.44,26.55814886]
[1743545405978,15.67661598,126.46,126.44,26.55814886]
[1743545406487,15.70661598,126.45,126.43,88.251]
[1743545406800,0.03,126.45,126.43,88.251]
[1743545407301,0.03,126.45,126.44,18.64964886]
[1743545407799,0.03,126.45,126.44,26.55844886]
[1743545408198,15.70661598,126.45,126.43,0.063]
[1743545408374,15.67661598,126.44,126.43,0.063]
[1743545410900,23.58541598,126.44,126.43,0.063]
[1743545415904,86.2918799,126.44,126.42,0.063]
[1743545416100,15.67661598,126.43,126.42,0.063]
[1743545417304,78.3830799,126.43,126.42,0.063]
[1743545417809,15.67661598,126.43,126.42,0.063]
[1743545418500,23.58611598,126.43,126.42,0.063]
[1743545424217,30.48611598,126.43,126.42,0.063]
[1743545426704,15.67661598,126.43,126.42,0.063]
[1743545428918,23.58611598,126.43,126.42,0.063]
[1743545429709,15.67661598,126.43,126.42,0.063]
[1743545429897,15.70661598,126.43,126.42,0.063]
[1743545430493,23.61611598,126.43,126.42,0.063]
[1743545436020,15.70661598,126.43,126.42,0.063]
[1743545436407,0.03,126.43,126.42,0.063]
[1743545436609,15.70661598,126.43,126.42,0.063]
[1743545438830,23.61611598,126.43,126.42,0.063]
[1743545443241,15.70661598,126.43,126.42,0.063]
[1743545445343,0.03,126.43,126.42,0.063]
[1743545446924,0.03,126.43,126.42,107.185672]
[1743545452466,0.03,126.45,126.44,80.53292314]
[1743545452750,0.03,126.49,126.45,18.933972]
[1743545452946,0.03,126.49,126.45,99.182572]
[1743545453243,0.03,126.49,126.48,0.28432314]
[1743545453433,0.03,126.49,126.48,99.182572]
[1743545455422,0.03,126.49,126.48,107.088872]
[1743545456560,0.0001,126.49,126.48,134.770072]
[1743545458032,0.03,126.53,126.52,80.43982314]
[1743545458231,0.03,126.53,126.52,99.089472]
[1743545458433,0.03,126.53,126.52,114.981272]
[1743545458735,0.03,126.53,126.52,106.79314886]
[1743545458939,0.03,126.53,126.52,98.80514886]
[1743545459328,0.03,126.53,126.52,106.993272]
[1743545460857,0.03,126.53,126.52,172.51237951]
[1743545461037,0.063,126.55,126.53,18.933972]
[1743545462033,0.063,126.55,126.53,38.933972]
[1743545462847,0.063,126.55,126.54,26.836572]
[1743545463252,0.063,126.55,126.54,33.053372]
[1743545463550,0.063,126.55,126.54,34.574572]
[1743545463939,0.03,126.58,126.56,80.0625]
[1743545464354,0.03,126.58,126.57,18.933972]
[1743545464953,0.03,126.58,126.57,26.834672]
[1743545467438,0.03,126.58,126.57,106.897172]
[1743545468957,0.03,126.58,126.57,126.897172]
[1743545470748,1.6297,126.66,126.61,80.0625]
[1743545470954,15.67661598,126.66,126.62,18.933972]
[1743545471856,0.03,126.68,126.62,98.996472]
[1743545472553,15.70661598,126.68,126.63,7.897]
[1743545472768,15.67661598,126.67,126.64,18.933972]
[1743545473064,15.67661598,126.67,126.64,98.996472]
[1743545473373,15.70661598,126.68,126.64,98.996472]
[1743545474754,15.70661598,126.68,126.64,106.892372]
[1743545475060,23.60051598,126.68,126.64,106.892372]
[1743545475862,15.67661598,126.66,126.64,98.71214886]
[1743545476360,15.67661598,126.65,126.64,98.71214886]
[1743545476658,15.67661598,126.66,126.64,98.71214886]
[1743545477441,15.67661598,126.65,126.64,80.0625]
[1743545477650,24.32730542,126.65,126.64,80.0625]
[1743545478238,1.5073,126.64,126.61,80.0625]
[1743545478444,24.32730542,126.62,126.61,80.0625]
[1743545478859,24.32730542,126.62,126.59,80.0625]
[1743545479058,24.32730542,126.6,126.59,80.0625]
[1743545479851,32.22610542,126.6,126.59,80.0625]
[1743545480061,56.55341084,126.6,126.57,80.0625]
[1743545480366,24.32730542,126.58,126.57,80.0625]
[1743545481145,33.81320542,126.58,126.57,80.0625]
[1743545481346,53.56350542,126.58,126.53,80.1255]
[1743545481546,24.32730542,126.54,126.53,0.063]
[1743545481762,48.65461084,126.54,126.53,0.063]
[1743545481945,50.16871084,126.54,126.53,0.063]
[1743545482146,25.84140542,126.54,126.53,0.063]
[1743545483852,24.32730542,126.54,126.53,0.063]
[1743545484250,24.32730542,126.55,126.53,0.063]
[1743545484653,24.32730542,126.54,126.53,0.063]
[1743545491748,32.22990542,126.54,126.53,0.063]
[1743545492658,56.55721084,126.54,126.53,0.063]
[1743545494158,56.55721084,126.54,126.47,80.0625]
[1743545494159,20.0,126.51,126.47,80.0625]
[1743545494354,24.32730542,126.48,126.47,80.0625]
[1743545495149,24.32730542,126.48,126.44,98.71214886]
[1743545495354,24.32730542,126.45,126.44,80.0625]
[1743545497066,31.24730542,126.47,126.44,87.9713]
[1743545497760,24.32730542,126.46,126.44,80.0625]
[1743545497965,24.32730542,126.45,126.44,80.0625]
[1743545499397,24.32730542,126.46,126.44,87.9713]
[1743545499569,31.24730542,126.47,126.44,87.9713]
[1743545500300,24.32730542,126.47,126.44,87.9713]
[1743545500902,24.32730542,126.47,126.44,88.0343]
[1743545501080,255.79972314,126.53,126.45,18.64964886]
[1743545501081,235.757,126.53,126.45,18.64964886]
[1743545501395,24.32730542,126.49,126.45,98.71214886]
[1743545502276,24.32730542,126.49,126.46,7.9076]
[1743545504991,24.32730542,126.49,126.46,87.9701]
[1743545506087,6.92,126.51,126.46,87.9701]
[1743545506088,229.251,126.53,126.47,18.64964886]
[1743545506293,24.32730542,126.51,126.47,98.71214886]
[1743545507278,24.32730542,126.51,126.48,7.9063]
[1743545508091,1.611,126.53,126.48,7.9063]
[1743545508296,24.32730542,126.51,126.48,7.9063]
[1743545509701,24.32730542,126.51,126.48,27.6722]
[1743545509898,24.32730542,126.5,126.48,7.9063]
[1743545510201,24.32730542,126.49,126.47,87.9691]
[1743545512904,24.32730542,126.49,126.47,88.0321]
[1743545516899,24.32730542,126.5,126.47,88.0321]
[1743545517203,24.32730542,126.49,126.47,88.0321]
[1743545519007,24.32730542,126.5,126.47,88.0321]
[1743545521708,15.60450328,126.5,126.47,88.0321]
[1743545522409,7.9039,126.52,126.47,80.1255]
[1743545522585,15.60450328,126.48,126.47,80.1255]
[1743545523796,15.60450328,126.5,126.47,88.0325]
[1743545524987,15.60450328,126.52,126.48,18.64964886]
[1743545525483,1.641,126.53,126.49,0.28432314]
[1743545525484,0.03,126.53,126.49,0.28432314]
[1743545525690,0.03,126.53,126.49,80.34682314]
[1743545526787,0.03,126.53,126.51,18.64964886]
[1743545527906,24.39751073,126.53,126.49,87.968]
[1743545528094,24.36751073,126.52,126.49,87.968]
[1743545530916,0.03,126.53,126.5,18.64964886]
[1743545531109,0.03,126.53,126.51,7.9045]
[1743545531497,0.03,126.53,126.51,87.967]
[1743545533321,0.03,126.53,126.52,18.64964886]
[1743545533501,0.03,126.53,126.52,98.71214886]
[1743545534516,0.03,126.53,126.52,106.61594886]
[1743545534811,0.03,126.53,126.52,87.9663]
[1743545535016,24.39751073,126.53,126.52,80.0625]
[1743545539421,32.30071073,126.53,126.49,80.0625]
[1743545539622,24.36751073,126.51,126.49,80.0625]
[1743545540398,24.36751073,126.5,126.49,80.0625]
[1743545540600,32.27261073,126.5,126.49,80.0625]
[1743545540799,24.36751073,126.5,126.49,80.0625]
[1743545542117,6.2103,126.53,126.5,18.933972]
[1743545542118,0.03,126.53,126.5,18.933972]
[1743545542421,0.03,126.53,126.52,7.9038]
[1743545543216,0.03,126.53,126.52,26.55344886]
[1743545546109,0.03,126.53,126.52,106.61594886]
[1743545546305,24.39751073,126.53,126.52,80.0625]
[1743545547524,24.39751073,126.53,126.5,7.9049]
[1743545547727,24.36751073,126.52,126.5,7.9049]
[1743545548622,24.36751073,126.52,126.5,7.9679]
[1743545548821,24.36751073,126.51,126.5,7.9679]
[1743545549017,24.36751073,126.51,126.5,0.063]
[1743545550021,24.39751073,126.53,126.5,0.063]
[1743545550198,0.03,126.53,126.5,18.71264886]
[1743545550397,0.03,126.53,126.5,98.77514886]
[1743545550602,0.03,126.53,126.52,18.64964886]
[1743545551606,0.0001,126.53,126.52,18.64964886]
[1743545552729,0.0001,126.53,126.52,7.9038]
[1743545554129,0.0001,126.53,126.52,106.900272]
[1743545554917,0.0001,126.53,126.52,106.61594886]
[1743545556418,0.0001,126.53,126.52,106.900272]
[1743545561032,0.0001,126.53,126.52,106.61594886]
[1743545561729,0.0001,126.53,126.52,80.0625]
[1743545562630,0.0001,126.53,126.52,87.9663]
[1743545564026,0.0001,126.53,126.52,80.0625]
[1743545564433,24.36761073,126.53,126.52,80.0625]
[1743545566134,24.36761073,126.53,126.5,80.1255]
[1743545566339,24.36751073,126.51,126.5,80.1255]
[1743545567140,24.36751073,126.52,126.5,80.1255]
[1743545569947,24.36751073,126.51,126.5,80.1255]
[1743545571320,24.36751073,126.51,126.5,0.063]
[1743545571521,32.27201073,126.51,126.5,0.063]
[1743545571721,24.36751073,126.51,126.5,0.063]
[1743545576437,24.36751073,126.52,126.5,0.063]
[1743545577428,0.0001,126.53,126.5,0.063]
[1743545578052,0.0001,126.53,126.5,80.1255]
[1743545578528,0.0001,126.53,126.51,18.64964886]
[1743545579651,0.0001,126.53,126.52,7.9038]
[1743545583851,0.0001,126.53,126.51,80.0625]
[1743545584146,24.36751073,126.52,126.51,80.0625]
[1743545587154,24.36751073,126.52,126.5,0.063]
[1743545587358,24.36751073,126.52,126.5,7.968]
[1743545588552,24.36761073,126.53,126.5,7.968]
[1743545588965,24.36751073,126.52,126.5,7.968]
[1743545589667,15.59941754,126.52,126.5,7.968]
[1743545592659,15.59951754,126.53,126.5,7.968]
[1743545593368,0.0001,126.53,126.51,18.64964886]
[1743545593775,0.0001,126.53,126.51,98.71214886]
[1743545595971,0.0001,126.53,126.52,26.55344886]
[1743545596271,0.0001,126.53,126.52,7.9038]
[1743545599780,15.59951754,126.53,126.51,7.9041]
[1743545599960,15.59941754,126.52,126.51,7.9041]
[1743545601977,15.59941754,126.52,126.5,7.9681]
[1743545604086,15.59951754,126.53,126.5,7.9681]
[1743545604367,15.59951754,126.53,126.5,27.7309]
[1743545604573,0.0001,126.53,126.5,27.7309]
[1743545604772,0.0001,126.53,126.5,107.7934]
[1743545604968,0.0001,126.53,126.51,18.64964886]
[1743545605155,0.0001,126.53,126.52,26.55344886]
[1743545608954,0.0001,126.53,126.52,26.61644886]
[1743545610677,0.0001,126.53,126.52,106.67894886]
[1743545625083,0.0001,126.53,126.52,106.963272]
[1743545626486,0.0001,126.53,126.52,128.595072]
[1743545628289,0.03,126.58,126.55,18.933972]
[1743545628489,0.03,126.58,126.55,98.996372]
[1743545629102,15.59941754,126.57,126.55,80.0624]
[1743545629293,15.59941754,126.56,126.53,18.64964886]
[1743545629481,15.59941754,126.57,126.53,18.64964886]
[1743545629892,15.59941754,126.56,126.53,18.64964886]
[1743545630502,15.59941754,126.56,126.53,26.55264886]
[1743545631302,15.59941754,126.56,126.53,18.64964886]
[1743545632284,15.59941754,126.56,126.52,80.1254]
[1743545632890,15.62941754,126.56,126.53,18.64964886]
[1743545633900,15.59941754,126.55,126.53,18.64964886]
[1743545634105,15.62941754,126.56,126.53,18.64964886]
[1743545634308,15.59941754,126.55,126.52,80.1254]
[1743545635421,23.50151754,126.55,126.52,80.1254]
[1743545636687,15.59941754,126.54,126.52,80.1254]
[1743545638714,15.59941754,126.54,126.52,88.0292]
[1743545639794,15.59941754,126.54,126.52,80.1254]
[1743545641011,15.59941754,126.54,126.52,88.0291]
[1743545641414,15.59941754,126.54,126.52,80.1254]
[1743545641595,15.59941754,126.53,126.52,80.1254]
[1743545641796,15.59941754,126.53,126.52,0.063]
[1743545642809,17.13331754,126.54,126.52,7.9668]
[1743545642987,15.59941754,126.54,126.52,7.9668]
[1743545644003,6.91,126.56,126.52,0.063]
[1743545644213,15.59941754,126.55,126.52,0.063]
[1743545644394,0.03,126.56,126.52,0.063]
[1743545644705,0.03,126.53,126.52,0.063]
[1743545644893,0.03,126.53,126.52,80.1254]
[1743545645795,0.03,126.53,126.52,99.059372]
[1743545646002,0.03,126.53,126.52,106.963172]
[1743545652741,0.03,126.53,126.52,80.1254]
[1743545653312,0.03,126.53,126.52,98.77504886]
[1743545653519,0.03,126.53,126.52,106.963172]
[1743545658403,0.03,126.53,126.52,98.77504886]
[1743545659026,0.03,126.53,126.52,106.67884886]
[1743545662331,0.03,126.53,126.52,108.464772]
[1743545663731,0.03,126.53,126.52,115.344772]
[1743545664930,0.03,126.56,126.53,18.933972]
[1743545665129,0.03,126.56,126.53,98.996372]
[1743545666933,0.03,126.56,126.55,18.933972]
[1743545669441,0.03,126.56,126.55,8.18632314]
[1743545672245,0.03,126.56,126.55,106.898372]
[1743545681634,0.03,126.56,126.55,106.61404886]
[1743545688944,0.03,126.56,126.55,106.898372]
[1743545699569,15.62941754,126.56,126.55,80.0624]
[1743545700664,0.03,126.56,126.53,98.77504886]
[1743545700859,15.59941754,126.55,126.53,98.77504886]
[1743545701252,15.59941754,126.55,126.53,106.67814886]
[1743545702472,0.03,126.56,126.54,0.28432314]
[1743545702645,0.03,126.56,126.53,126.43624886]
[1743545702855,15.62941754,126.56,126.53,106.67814886]
[1743545704173,0.03,126.56,126.53,106.67814886]
[1743545705065,0.03,126.56,126.53,126.43624886]
[1743545705541,0.03,126.55,126.53,126.43624886]
[1743545705964,0.03,126.55,126.54,0.28432314]
[1743545706148,0.03,126.55,126.54,26.836572]
[1743545707146,0.03,126.55,126.54,26.55224886]
[1743545708467,0.03,126.55,126.54,26.836572]
[1743545710249,0.03,126.55,126.54,106.898972]
[1743545714363,0.03,126.55,126.54,106.61464886]
[1743545714566,15.62941754,126.55,126.54,80.0624]
[1743545714754,0.03,126.55,126.54,80.0624]
[1743545714953,0.03,126.55,126.54,98.71204886]
[1743545718668,0.03,126.55,126.54,80.0624]
[1743545718876,15.62941754,126.55,126.54,80.0624]
[1743545719046,15.62941754,126.55,126.53,0.063]
[1743545721968,15.59941754,126.54,126.53,0.063]
[1743545723758,23.50201754,126.54,126.53,0.063]
[1743545724275,15.59941754,126.54,126.53,0.063]
[1743545728483,23.50201754,126.54,126.53,0.063]
[1743545730385,15.59941754,126.54,126.53,0.063]
[1743545734686,23.50201754,126.54,126.53,0.063]
[1743545737092,15.59941754,126.54,126.53,0.063]
[1743545741684,17.21391754,126.55,126.53,0.063]
[1743545741886,0.03,126.54,126.53,0.063]
[1743545762416,0.03,126.54,126.53,98.77504886]
[1743545764119,0.03,126.54,126.53,106.67824886]
[1743545764294,0.03,126.54,126.53,88.0286]
[1743545764500,0.03,126.54,126.53,80.1254]
[1743545764501,15.62941754,126.54,126.53,80.1254]
[1743545765421,15.62941754,126.54,126.53,88.0286]
[1743545765821,0.03,126.54,126.53,88.0286]
[1743545766001,0.03,126.54,126.53,0.063]
[1743545767306,0.03,126.54,126.53,7.9662]
[1743545771922,0.03,126.54,126.53,106.67824886]
[1743545775333,0.03,126.56,126.54,18.933972]
[1743545776239,0.03,126.56,126.55,7.902]
[1743545776538,0.03,126.56,126.55,26.55164886]
[1743545776732,0.03,126.58,126.55,46.590972]
[1743545777646,0.03,126.58,126.55,27.657]
[1743545777847,0.03,126.58,126.56,18.64964886]
[1743545778160,0.03,126.58,126.56,98.71204886]
[1743545778457,0.03,126.58,126.57,7.9007]
[1743545782238,0.03,126.58,126.57,26.55034886]
[1743545784850,0.03,126.58,126.57,7.9007]
[1743545786755,0.03,126.58,126.57,26.55034886]
[1743545787137,0.03,126.58,126.57,7.9007]
[1743545787342,15.62941754,126.58,126.57,7.9007]
[1743545788154,0.03,126.58,126.57,7.9007]
[1743545788458,15.62941754,126.58,126.57,7.9007]
[1743545788636,15.62941754,126.58,126.56,80.0624]
[1743545788841,15.59941754,126.57,126.56,87.9637]
[1743545789350,17.16101754,126.57,126.55,0.063]
[1743545789532,35.59941754,126.56,126.55,0.063]
[1743545800655,35.62941754,126.56,126.55,0.063]
[1743545805180,35.91374068,126.56,126.55,0.063]
[1743545807291,35.62941754,126.56,126.55,0.063]
[1743545809793,43.81504068,126.56,126.55,0.063]
[1743545815880,20.03,126.56,126.55,0.063]
[1743545816184,35.62941754,126.56,126.55,0.063]
[1743545819289,42.50941754,126.56,126.55,0.063]
[1743545820803,35.62941754,126.56,126.55,0.063]
[1743545820980,42.50941754,126.56,126.55,0.063]
[1743545821992,35.62941754,126.56,126.55,0.063]
[1743545822168,42.50941754,126.56,126.55,0.063]
[1743545824474,35.62941754,126.56,126.55,0.063]
[1743545824673,42.50941754,126.56,126.55,0.063]
[1743545827988,50.41071754,126.56,126.55,0.063]
[1743545829191,42.50941754,126.56,126.55,0.063]
[1743545830985,35.62941754,126.56,126.55,0.063]
[1743545834803,42.50941754,126.56,126.55,0.063]
[1743545846103,35.62941754,126.56,126.55,0.063]
[1743545847283,20.03,126.56,126.55,0.063]
[1743545854491,0.03,126.56,126.55,0.063]
[1743545855288,0.03,126.56,126.55,7.7005]
[1743545855898,15.62941754,126.56,126.55,0.063]
[1743545857208,0.03,126.56,126.55,0.063]
[1743545867616,15.62941754,126.56,126.55,0.063]
[1743545875425,23.53071754,126.56,126.55,0.063]
[1743545875812,15.62941754,126.56,126.55,0.063]
[1743545880312,0.03,126.56,126.55,0.063]
[1743545887941,15.62941754,126.56,126.55,0.063]
[1743545888651,0.03,126.56,126.55,0.063]
[1743545889319,0.03,126.56,126.55,98.77504886]
[1743545890138,0.03,126.56,126.55,106.67704886]
[1743545890642,0.03,126.56,126.55,88.0274]
[1743545896250,0.03,126.56,126.55,106.67704886]
[1743545899356,0.03,126.56,126.55,106.961372]
[1743545900040,0.03,126.58,126.57,7.9007]
[1743545902050,0.03,126.58,126.56,26.55094886]
[1743545903954,0.03,126.58,126.56,106.61334886]
[1743545906568,15.62941754,126.58,126.56,106.61334886]
[1743545907558,0.03,126.58,126.56,106.61334886]
[1743545907856,15.62941754,126.58,126.56,106.61334886]
[1743545910670,15.59941754,126.57,126.55,0.063]
[1743545910867,15.59941754,126.56,126.55,0.063]
[1743545913564,15.59941754,126.57,126.55,0.063]
[1743545913864,15.62941754,126.58,126.55,18.71264886]
[1743545914945,15.62941754,126.58,126.55,26.61414886]
[1743545915769,15.62941754,126.58,126.55,106.67654886]
[1743545916662,15.59941754,126.56,126.55,80.1254]
[1743545916850,23.50071754,126.56,126.55,80.1254]
[1743545921566,23.50071754,126.56,126.55,0.063]
[1743545928978,15.59941754,126.56,126.55,0.063]
[1743545929275,15.59941754,126.57,126.55,0.063]
[1743545929473,15.62941754,126.58,126.55,0.063]
[1743545929658,15.59941754,126.57,126.55,0.063]
[1743545929856,0.03,126.58,126.55,80.1254]
[1743545930256,0.03,126.58,126.56,18.64964886]
[1743545931882,0.03,126.58,126.56,26.55054886]
[1743545932465,15.62941754,126.58,126.55,88.0272]